bitfinex-derivatives/quotes_SOLF0:USTF0_20250221
["timestamp","ask_amount","ask_price","bid_price","bid_amount"]
[1740117845940,0.04281192,174.96,174.93,5.75159516]
[1740117846338,0.04281192,174.96,174.93,0.03639516]
[1740117847643,0.04281192,174.96,174.95,10.13380103]
[1740117848242,0.04281192,174.96,174.95,15.84840103]
[1740117848741,0.04281192,174.96,174.95,10.13380103]
[1740117849342,0.04281192,174.96,174.95,15.84840103]
[1740117850243,0.04281192,174.96,174.95,10.13380103]
[1740117850642,0.04281192,174.96,174.95,15.84840103]
[1740117853845,0.04281192,174.96,174.93,5.75159516]
[1740117854042,0.04281192,174.96,174.94,10.13380103]
[1740117857843,0.04281192,174.96,174.95,5.7146]
[1740117858047,1.8244,175.03,174.94,10.13380103]
[1740117858349,7.4053,175.06,175.01,10.13380103]
[1740117859148,0.04169412,175.05,175.02,0.03646424]
[1740117861653,0.04169412,175.05,175.04,5.7117]
[1740117861950,0.04169412,175.05,175.03,10.13380103]
[1740117863350,0.04169412,175.05,175.03,15.84550103]
[1740117864554,0.04169412,175.05,175.03,10.13380103]
[1740117864942,0.04169412,175.05,175.03,15.84570103]
[1740117865143,0.04169412,175.05,175.03,10.13380103]
[1740117866255,0.04169412,175.05,175.04,5.7117]
[1740117870353,1.6967,175.13,175.03,10.13380103]
[1740117870354,159.69380103,175.16,175.03,10.13380103]
[1740117870552,15.84170103,175.16,175.1,5.7096]
[1740117870757,10.13380103,175.18,175.11,10.13380103]
[1740117870957,15.84120103,175.18,175.12,5.709]
[1740117871655,0.03772755,175.17,175.13,0.03806836]
[1740117871857,5.74542755,175.17,175.13,0.03806836]
[1740117872558,5.7078,175.16,175.13,0.03806836]
[1740117873658,5.7082,175.15,175.13,0.03806836]
[1740117875563,0.03772755,175.17,175.13,0.03806836]
[1740117875767,5.7084,175.14,175.13,0.03806836]
[1740117878067,5.7081,175.15,175.13,0.03806836]
[1740117880767,5.7084,175.14,175.13,0.03806836]
[1740117883863,10.13380103,175.14,174.89,17.15]
[1740117884166,10.13380103,175.1,175.03,10.13380103]
[1740117884358,10.13380103,175.1,175.05,15.84490103]
[1740117884959,0.04235916,175.09,175.06,0.03930626]
[1740117888573,5.75265916,175.09,175.06,0.03930626]
[1740117890469,0.04235916,175.09,175.06,0.03930626]
[1740117890672,5.7104,175.08,175.06,0.03930626]
[1740117890867,0.04235916,175.09,175.07,10.13380103]
[1740117892572,0.04235916,175.09,175.08,5.7104]
[1740117899778,5.2856,175.2,175.07,10.13380103]
[1740117899978,5.2856,175.2,175.15,10.13380103]
[1740117900379,5.7074,175.18,175.13,10.13380103]
[1740117900980,0.04220076,175.17,175.14,0.03736649]
[1740117901480,5.74970076,175.17,175.14,0.03736649]
[1740117902879,0.04220076,175.17,175.14,0.03736649]
[1740117903682,5.74960076,175.17,175.14,0.03736649]
[1740117904288,0.04220076,175.17,175.14,0.03736649]
[1740117904685,5.74960076,175.17,175.14,0.03736649]
[1740117905083,0.04220076,175.17,175.14,0.03736649]
[1740117905285,0.04220076,175.17,175.16,5.7078]
[1740117905685,1.8053,175.24,175.15,10.13380103]
[1740117905887,1.8053,175.24,175.21,15.83990103]
[1740117906291,198.66132472,175.26,175.23,15.83930103]
[1740117906483,198.66132472,175.26,175.23,10.13380103]
[1740117906784,198.69828349,175.26,175.25,10.13380103]
[1740117909594,0.03695877,175.26,175.25,10.13380103]
[1740117911395,5.7028,175.32,175.25,10.13380103]
[1740117911691,5.7028,175.32,175.29,10.13380103]
[1740117912195,15.34510103,175.35,175.29,10.13380103]
[1740117912390,5.7029,175.31,175.29,10.13380103]
[1740117912692,5.7029,175.31,175.3,0.04167326]
[1740117913194,5.7026,175.32,175.3,0.04167326]
[1740117913392,0.04221181,175.34,175.3,0.04167326]
[1740117913787,5.7029,175.31,175.3,0.04167326]
[1740117916596,5.7027,175.32,175.3,0.04167326]
[1740117917695,0.04221181,175.34,175.3,0.04167326]
[1740117917994,5.74421181,175.34,175.31,10.13380103]
[1740117918196,0.04221181,175.34,175.31,10.13380103]
[1740117919197,5.74421181,175.34,175.31,10.13380103]
[1740117919890,0.04221181,175.34,175.31,10.13380103]
[1740117920094,5.7025,175.33,175.31,10.13380103]
[1740117921194,5.7029,175.31,175.3,0.04167326]
[1740117923097,10.13380103,175.33,175.27,10.13380103]
[1740117923300,10.13380103,175.31,175.25,10.13380103]
[1740117924400,5.7041,175.28,175.26,0.04050397]
[1740117925094,0.03813948,175.3,175.26,0.04050397]
[1740117925095,5.7036,175.29,175.26,0.04050397]
[1740117926098,0.03813948,175.3,175.27,10.13380103]
[1740117926298,0.03813948,175.3,175.29,15.83730103]
[1740117927399,0.03813948,175.3,175.29,10.13380103]
[1740117933304,0.03813948,175.3,175.29,15.83730103]
[1740117942108,17.15,175.53,175.29,15.83730103]
[1740117942109,198.66132472,175.43,175.29,10.13380103]
[1740117942310,10.13380103,175.39,175.34,10.13380103]
[1740117942916,5.7012,175.37,175.34,10.13380103]
[1740117943411,0.04208038,175.37,175.34,10.17408359]
[1740117944302,0.04208038,175.37,175.34,15.87578359]
[1740117944503,0.04208038,175.37,175.34,10.17408359]
[1740117944810,0.04208038,175.37,175.36,10.13380103]
[1740117945111,5.6992,175.43,175.36,10.13380103]
[1740117945312,5.6992,175.43,175.39,10.13380103]
[1740117945708,5.6987,175.44,175.39,10.13380103]
[1740117946111,0.04113501,175.43,175.4,0.03654025]
[1740117948915,5.74023501,175.43,175.4,0.03654025]
[1740117950011,0.04113501,175.43,175.4,0.03654025]
[1740117950210,0.04113501,175.43,175.41,10.13380103]
[1740117953616,0.04113501,175.43,175.4,0.03654025]
[1740117954019,5.6995,175.42,175.4,0.03654025]
[1740117954207,0.04113501,175.43,175.4,0.03654025]
[1740117954408,0.04113501,175.43,175.41,10.13380103]
[1740117960428,0.04113501,175.43,175.41,15.83340103]
[1740117960729,0.04113501,175.43,175.41,10.13380103]
[1740117961331,0.04113501,175.43,175.41,15.83320103]
[1740117961826,0.04113501,175.43,175.42,5.6993]
[1740117962026,1.7973,175.49,175.41,10.13380103]
[1740117962226,1.7973,175.49,175.46,10.13380103]
[1740117962930,7.4944,175.49,175.46,10.13380103]
[1740117963133,7.53634306,175.49,175.46,10.17526684]
[1740117964027,5.6976,175.48,175.46,0.04146581]
[1740117964228,1.83924306,175.49,175.46,0.04146581]
[1740117964423,11.97304409,175.49,175.46,0.04146581]
[1740117964732,5.6977,175.47,175.46,0.04146581]
[1740117965432,5.6975,175.48,175.46,0.04146581]
[1740117966534,5.6977,175.47,175.46,0.04146581]
[1740117967724,11.97304409,175.49,175.46,0.04146581]
[1740117967929,5.6976,175.48,175.46,0.04146581]
[1740117968333,11.97304409,175.49,175.46,0.04146581]
[1740117968535,5.6977,175.47,175.46,0.04146581]
[1740117969136,5.6975,175.48,175.46,0.04146581]
[1740117969635,1.83924306,175.49,175.46,10.17526684]
[1740117969636,0.04194306,175.49,175.46,10.17526684]
[1740117969935,0.04194306,175.49,175.48,10.13380103]
[1740117970235,0.04194306,175.49,175.48,15.83120103]
[1740117971435,0.04194306,175.49,175.48,10.13380103]
[1740117972233,5.6977,175.47,175.46,0.04146581]
[1740117973324,5.6977,175.47,175.41,10.13380103]
[1740117973325,0.04194306,175.49,175.43,10.13380103]
[1740117973528,10.13380103,175.5,175.43,10.13380103]
[1740117973734,5.6984,175.45,175.43,10.13380103]
[1740117974233,5.6981,175.46,175.43,10.13380103]
[1740117974433,0.04312435,175.46,175.43,10.13380103]
[1740117974636,0.04312435,175.46,175.42,0.03616641]
[1740117974937,5.6987,175.44,175.42,0.03616641]
[1740117975731,0.04312435,175.46,175.42,0.03616641]
[1740117976529,0.04312435,175.46,175.43,15.83280103]
[1740117976735,0.04312435,175.46,175.43,10.13380103]
[1740117977933,0.04312435,175.46,175.45,10.13380103]
[1740117978436,0.04312435,175.46,175.43,10.13380103]
[1740117979038,0.04312435,175.46,175.45,10.13380103]
[1740117979239,0.04312435,175.46,175.42,0.03616641]
[1740117979532,0.04312435,175.46,175.44,10.13380103]
[1740117982242,5.74112435,175.46,175.44,10.13380103]
[1740117982440,0.04312435,175.46,175.44,10.13380103]
[1740117985349,0.04312435,175.46,175.44,15.83230103]
[1740117986150,0.04312435,175.46,175.45,5.6983]
[1740117988053,0.04312435,175.46,175.42,0.03616641]
[1740117988351,0.04312435,175.46,175.44,10.13380103]
[1740117988551,0.04312435,175.46,175.44,15.83220103]
[1740117989250,0.04312435,175.46,175.44,10.13380103]
[1740117989446,0.04312435,175.46,175.45,5.6983]
[1740117995054,0.04312435,175.46,175.44,10.13380103]
[1740117995055,198.66132472,175.58,175.44,10.13380103]
[1740117995255,198.66132472,175.58,175.54,10.13380103]
[1740117995451,204.35572472,175.58,175.54,10.13380103]
[1740117995848,198.66132472,175.58,175.54,10.13380103]
[1740117996053,198.69999555,175.58,175.54,10.17253928]
[1740117997248,204.39419555,175.58,175.54,10.17253928]
[1740117997860,5.73287083,175.58,175.54,10.17253928]
[1740118002659,7.083e-05,175.58,175.57,5.6944]
[1740118004361,7.083e-05,175.58,175.56,10.13380103]
[1740118004663,7.083e-05,175.58,175.56,15.82850103]
[1740118005060,7.083e-05,175.58,175.56,10.13380103]
[1740118005260,7.083e-05,175.58,175.57,5.6944]
[1740118005462,7.083e-05,175.58,175.56,10.13380103]
[1740118006261,7.083e-05,175.58,175.56,15.82850103]
[1740118008264,7.083e-05,175.58,175.57,5.6944]
[1740118021873,7.083e-05,175.58,175.57,15.82820103]
[1740118022876,7.083e-05,175.58,175.54,0.03873825]
[1740118023169,7.083e-05,175.58,175.55,10.13380103]
[1740118023371,10.13387186,175.58,175.54,0.03873825]
[1740118023971,15.82807186,175.58,175.54,0.03873825]
[1740118024171,7.083e-05,175.58,175.54,0.03873825]
[1740118025172,10.13387186,175.58,175.54,0.03873825]
[1740118025874,10.13380103,175.56,175.5,0.74088009]
[1740118026072,10.13380103,175.54,175.49,10.13380103]
[1740118026273,5.6957,175.53,175.47,15.83140103]
[1740118026473,1.6888,175.53,175.47,10.13380103]
[1740118027076,0.03801866,175.52,175.48,0.03767019]
[1740118027278,0.03801866,175.52,175.48,5.73477019]
[1740118028178,0.03801866,175.52,175.49,10.13380103]
[1740118028380,0.03801866,175.52,175.51,10.13380103]
[1740118029276,0.03801866,175.52,175.49,10.13380103]
[1740118032280,5.73411866,175.52,175.49,10.13380103]
[1740118033372,10.17181969,175.52,175.48,0.03767019]
[1740118033781,10.13380103,175.64,175.51,10.13380103]
[1740118033986,200.41602472,175.62,175.58,10.13380103]
[1740118034680,11.88850103,175.62,175.56,10.13380103]
[1740118034882,17.62434119,175.62,175.58,0.03647779]
[1740118035682,11.93154119,175.62,175.37,17.1]
[1740118035884,10.13380103,175.6,175.53,10.13380103]
[1740118036281,5.6939,175.59,175.53,15.82930103]
[1740118036587,10.13380103,175.6,175.44,9.233]
[1740118036784,10.13380103,175.6,175.53,10.13380103]
[1740118037083,10.13380103,175.58,175.52,10.13380103]
[1740118037280,1.7496,175.57,175.55,0.04088382]
[1740118037483,7.4441,175.57,175.52,10.13380103]
[1740118038080,1.7496,175.57,175.52,10.13380103]
[1740118038280,1.7496,175.57,175.54,10.13380103]
[1740118038784,1.78941521,175.57,175.54,10.17278084]
[1740118039687,1.78941521,175.57,175.55,5.6951]
[1740118040577,1.78941521,175.57,175.56,10.13380103]
[1740118040777,0.03981521,175.57,175.56,10.13380103]
[1740118041386,0.03981521,175.57,175.56,15.82860103]
[1740118042483,0.03981521,175.57,175.56,10.13380103]
[1740118045884,0.03981521,175.57,175.54,10.17278084]
[1740118046084,0.03981521,175.57,175.54,0.03897981]
[1740118047083,5.73431521,175.57,175.54,0.03897981]
[1740118048882,0.03981521,175.57,175.55,10.13380103]
[1740118050784,0.03981521,175.57,175.56,5.6948]
[1740118051186,0.03981521,175.57,175.55,10.13380103]
[1740118052787,0.03981521,175.57,175.55,15.82890103]
[1740118053494,1.7733,175.63,175.55,10.13380103]
[1740118053790,1.7788,175.62,175.58,10.13380103]
[1740118054497,1.7788,175.62,175.6,10.13380103]
[1740118054690,1.81959018,175.62,175.6,10.13380103]
[1740118056192,1.81959018,175.62,175.61,5.6931]
[1740118057292,1.81959018,175.62,175.6,15.82720103]
[1740118058196,0.04079018,175.62,175.61,5.6931]
[1740118058893,0.04079018,175.62,175.6,10.13380103]
[1740118060196,0.04079018,175.62,175.61,5.6931]
[1740118081410,0.04079018,175.62,175.6,15.82720103]
[1740118084513,0.04079018,175.62,175.6,10.13380103]
[1740118086513,0.04079018,175.62,175.6,15.82700103]
[1740118089328,0.04079018,175.62,175.6,10.13380103]
[1740118089523,0.04079018,175.62,175.61,5.6931]
[1740118097622,9.018e-05,175.62,175.61,5.6931]
[1740118099235,1.8105,175.7,175.6,10.13380103]
[1740118099431,5.6908,175.69,175.65,10.13380103]
[1740118100231,10.13380103,175.67,175.55,60.46112694]
[1740118100428,10.13380103,175.67,175.65,0.04075038]
[1740118100631,10.13380103,175.67,175.62,10.13380103]
[1740118100833,5.6911,175.68,175.62,10.13380103]
[1740118101030,0.04187889,175.66,175.63,0.03822703]
[1740118102829,10.17567992,175.66,175.63,0.03822703]
[1740118103227,15.82600103,175.64,175.63,0.03822703]
[1740118103431,10.13380103,175.64,175.58,10.13380103]
[1740118103834,10.13380103,175.62,175.53,60.46815198]
[1740118104033,10.13380103,175.62,175.55,10.13380103]
[1740118104232,10.13380103,175.6,175.55,10.13380103]
[1740118104428,0.04300016,175.59,175.56,0.03873361]
[1740118108539,0.04300016,175.59,175.57,10.13380103]
[1740118110536,0.04300016,175.59,175.57,15.82820103]
[1740118110939,0.04300016,175.59,175.56,0.03873361]
[1740118111540,0.04300016,175.59,175.57,5.6944]
[1740118112443,0.04300016,175.59,175.58,5.6941]
[1740118114944,0.04300016,175.59,175.57,15.82820103]
[1740118115549,0.04300016,175.59,175.57,10.13380103]
[1740118118245,0.04300016,175.59,175.56,0.03873361]
[1740118118546,5.6941,175.58,175.56,0.03873361]
[1740118118747,0.04300016,175.59,175.56,0.03873361]
[1740118118946,5.6941,175.58,175.56,0.03873361]
[1740118119344,10.13380103,175.57,175.53,60.46815198]
[1740118119544,5.6948,175.56,175.53,60.46815198]
[1740118120144,10.13380103,175.55,175.41,7.44]
[1740118120447,10.13380103,175.55,175.5,10.13380103]
[1740118120849,0.04364582,175.54,175.51,0.03974147]
[1740118121248,5.73914582,175.54,175.51,0.03974147]
[1740118121446,0.04364582,175.54,175.51,0.03974147]
[1740118126048,5.73914582,175.54,175.51,0.03974147]
[1740118126452,0.04364582,175.54,175.51,0.03974147]
[1740118129955,5.73904582,175.54,175.51,0.03974147]
[1740118131054,0.04364582,175.54,175.52,5.6958]
[1740118131254,0.04364582,175.54,175.51,0.03974147]
[1740118132652,0.04364582,175.54,175.51,5.73584147]
[1740118134858,0.04364582,175.54,175.51,0.03974147]
[1740118137155,5.73904582,175.54,175.51,0.03974147]
[1740118138558,5.6957,175.53,175.51,0.03974147]
[1740118138761,0.04364582,175.54,175.51,0.03974147]
[1740118139260,5.6959,175.53,175.51,0.03974147]
[1740118140165,5.6961,175.52,175.51,0.03974147]
[1740118141860,0.04364582,175.54,175.51,0.03974147]
[1740118142666,5.73914582,175.54,175.51,0.03974147]
[1740118143255,0.04364582,175.54,175.51,0.03974147]
[1740118143966,5.6958,175.53,175.51,0.03974147]
[1740118144167,0.04364582,175.54,175.51,0.03974147]
[1740118144664,5.6961,175.52,175.51,0.03974147]
[1740118147161,0.04364582,175.54,175.51,0.03974147]
[1740118147970,0.04364582,175.54,175.51,5.73604147]
[1740118148362,0.04364582,175.54,175.51,0.03974147]
[1740118150765,0.04364582,175.54,175.51,5.73604147]
[1740118151369,0.04364582,175.54,175.51,0.03974147]
[1740118152270,0.04364582,175.54,175.51,5.73594147]
[1740118152465,0.04364582,175.54,175.51,0.03974147]
[1740118154767,5.73904582,175.54,175.51,0.03974147]
[1740118155871,0.04364582,175.54,175.51,0.03974147]
[1740118156071,10.17744685,175.54,175.51,0.03974147]
[1740118157073,5.6961,175.52,175.51,0.03974147]
[1740118158470,5.6958,175.53,175.51,0.03974147]
[1740118158875,10.17744685,175.54,175.51,0.03974147]
[1740118159073,5.696,175.53,175.51,0.03974147]
[1740118159973,10.17744685,175.54,175.51,0.03974147]
[1740118160175,5.6961,175.52,175.51,0.03974147]
[1740118161474,10.13380103,175.52,175.51,0.03974147]
[1740118163372,15.82990103,175.52,175.51,0.03974147]
[1740118165777,193.0,175.51,175.4,59.22970735]
[1740118165980,10.13380103,175.44,175.35,7.85190164]
[1740118166172,10.13380103,175.39,175.35,7.85190164]
[1740118166576,10.13380103,175.39,175.34,31.37947523]
[1740118167079,15.83410103,175.39,175.37,0.04233748]
[1740118168277,10.13380103,175.39,175.37,0.04233748]
[1740118168672,0.04124164,175.4,175.38,36.73854]
[1740118169075,0.04124164,175.4,175.38,31.03794]
[1740118173586,0.04124164,175.4,175.38,36.73844]
[1740118175494,0.04124164,175.4,175.38,31.03794]
[1740118175694,0.04124164,175.4,175.39,5.7003]
[1740118176386,0.04124164,175.4,175.38,36.73834]
[1740118182398,0.04124164,175.4,175.38,36.73854]
[1740118185795,0.04124164,175.4,175.38,31.03794]
[1740118186001,0.04124164,175.4,175.39,5.7003]
[1740118189197,0.04124164,175.4,175.38,41.17174103]
[1740118189398,0.04124164,175.4,175.38,36.73854]
[1740118189704,0.04124164,175.4,175.38,31.03794]
[1740118193709,5.74134164,175.4,175.38,31.03794]
[1740118196610,0.04124164,175.4,175.38,31.03794]
[1740118202116,5.74124164,175.4,175.38,31.03794]
[1740118202311,0.04124164,175.4,175.38,31.03794]
[1740118202711,15.83410103,175.39,175.38,31.03794]
[1740118202913,15.83410103,175.39,175.38,28.23564]
[1740118203217,15.83410103,175.39,175.37,0.04233748]
[1740118203218,10.13380103,175.39,175.3,10.13380103]
[1740118203515,10.13380103,175.35,175.3,10.13380103]
[1740118203719,15.83560103,175.35,175.3,15.83670103]
[1740118204214,0.03788831,175.34,175.31,0.0373618]
[1740118206720,0.03788831,175.34,175.31,5.7402618]
[1740118208817,0.03788831,175.34,175.31,0.0373618]
[1740118210117,5.73998831,175.34,175.31,0.0373618]
[1740118210325,0.03788831,175.34,175.31,0.0373618]
[1740118212526,0.03788831,175.34,175.31,5.7402618]
[1740118213222,0.03788831,175.34,175.31,0.0373618]
[1740118214024,0.03788831,175.34,175.31,5.7399618]
[1740118215525,0.03788831,175.34,175.32,5.7025]
[1740118215925,0.03788831,175.34,175.31,0.0373618]
[1740118217030,10.13380103,175.33,175.31,0.0373618]
[1740118221720,0.03788831,175.34,175.31,0.0373618]
[1740118222433,0.03788831,175.34,175.31,5.7399618]
[1740118222633,10.13380103,175.33,175.31,0.0373618]
[1740118227033,10.13380103,175.33,175.31,5.7401618]
[1740118229036,0.03788831,175.34,175.33,5.7022]
[1740118229736,0.03788831,175.34,175.32,5.7025]
[1740118230235,0.03788831,175.34,175.31,0.0373618]
[1740118231735,10.13380103,175.33,175.31,0.0373618]
[1740118232837,10.13380103,175.33,175.16,31.37947523]
[1740118233037,10.13380103,175.28,175.21,10.13380103]
[1740118234043,0.03890487,175.27,175.24,0.03962495]
[1740118236035,0.03890487,175.27,175.24,5.74462495]
[1740118236740,0.03890487,175.27,175.24,0.03962495]
[1740118237035,0.03890487,175.27,175.25,5.7047]
[1740118238740,0.03890487,175.27,175.26,5.7045]
[1740118244242,0.03890487,175.27,175.24,0.03962495]
[1740118244439,0.03890487,175.27,175.25,5.7046]
[1740118245346,0.03890487,175.27,175.24,0.03962495]
[1740118246552,15.83860103,175.26,175.24,0.03962495]
[1740118246846,10.13380103,175.26,175.24,0.03962495]
[1740118247948,15.83850103,175.26,175.24,0.03962495]
[1740118249852,10.13380103,175.26,175.24,0.03962495]
[1740118263860,15.83840103,175.26,175.24,0.03962495]
[1740118265264,5.7048,175.25,175.24,0.03962495]
[1740118265559,10.13380103,175.26,175.16,10.13380103]
[1740118265763,10.13380103,175.22,175.19,5.7067]
[1740118266353,10.13380103,175.22,175.15,10.13380103]
[1740118266553,10.17644897,175.22,175.19,0.03741075]
[1740118267962,0.04264794,175.22,175.19,0.03741075]
[1740118268162,0.04264794,175.22,175.21,5.7061]
[1740118275765,10.13380103,175.3,175.21,10.13380103]
[1740118275967,27.06479861,175.34,175.25,10.13380103]
[1740118276167,10.13380103,175.33,175.27,10.13380103]
[1740118276574,208.38309043,175.35,175.29,10.13380103]
[1740118277066,208.38309043,175.35,175.33,5.7022]
[1740118277067,0.04165507,175.34,175.33,5.7022]
[1740118277267,0.04165507,175.34,175.3,0.03904138]
[1740118278469,0.04165507,175.34,175.31,5.7026]
[1740118278962,0.04165507,175.34,175.3,0.03904138]
[1740118282770,5.74355507,175.34,175.3,0.03904138]
[1740118283276,15.83620103,175.33,175.3,0.03904138]
[1740118284477,5.7026,175.32,175.3,0.03904138]
[1740118284868,10.13380103,175.33,175.3,0.03904138]
[1740118285970,0.04165507,175.34,175.3,0.03904138]
[1740118286771,0.04165507,175.34,175.32,5.7025]
[1740118287972,0.04165507,175.34,175.31,5.7026]
[1740118292878,0.04165507,175.34,175.3,0.03904138]
[1740118293580,0.04165507,175.34,175.3,5.74204138]
[1740118293883,0.04165507,175.34,175.3,0.03904138]
[1740118294085,10.13380103,175.33,175.3,0.03904138]
[1740118294781,10.13380103,175.31,175.3,0.03904138]
[1740118294981,10.13380103,175.31,175.22,57.43186113]
[1740118295182,1.8495,175.32,175.22,57.43186113]
[1740118295183,10.13380103,175.28,175.22,57.43186113]
[1740118295379,10.13380103,175.26,175.21,10.13380103]
[1740118295683,10.13380103,175.26,175.19,10.93621914]
[1740118296079,0.03643879,175.24,175.21,0.04195372]
[1740118297785,0.03643879,175.24,175.21,5.74785372]
[1740118298282,0.03643879,175.24,175.21,0.04195372]
[1740118299287,10.17023982,175.24,175.21,0.04195372]
[1740118299884,15.87563982,175.24,175.21,0.04195372]
[1740118300085,10.13380103,175.22,175.21,0.04195372]
[1740118300286,10.13380103,175.22,175.19,0.80241811]
[1740118300588,10.13380103,175.2,175.19,0.80241811]
[1740118304488,15.83990103,175.22,175.19,0.80241811]
[1740118305991,5.7064,175.21,175.19,0.80241811]
[1740118307389,5.7061,175.21,175.19,0.80241811]
[1740118307586,10.13380103,175.22,175.19,0.80241811]
[1740118308089,10.13380103,175.22,175.18,0.03891186]
[1740118308291,5.7062,175.21,175.18,0.03891186]
[1740118308589,10.13380103,175.22,175.18,0.03891186]
[1740118308791,5.7064,175.21,175.18,0.03891186]
[1740118308985,10.13380103,175.22,175.18,0.03891186]
[1740118309687,10.13380103,175.2,175.18,0.03891186]
[1740118310390,5.7068,175.19,175.18,0.03891186]
[1740118315395,7.4766,175.19,175.18,0.03891186]
[1740118316292,1.7698,175.19,175.02,7.46]
[1740118316487,10.13380103,175.14,175.07,10.13380103]
[1740118317295,5.7091,175.12,175.09,5.71]
[1740118317495,0.03938247,175.12,175.07,10.13380103]
[1740118318291,0.03938247,175.12,175.08,5.7103]
[1740118318494,0.03938247,175.12,175.07,10.13380103]
[1740118319599,10.1731835,175.12,175.05,10.13380103]
[1740118319897,5.71,175.1,175.05,10.13380103]
[1740118320097,5.74629512,175.1,175.05,10.13380103]
[1740118320298,5.7101,175.09,175.05,10.13380103]
[1740118320599,10.17009615,175.1,175.05,10.13380103]
[1740118320991,15.87999615,175.1,175.01,3.4386]
[1740118321197,15.87999615,175.1,175.04,15.84520103]
[1740118322299,15.87999615,175.1,175.05,5.7112]
[1740118322802,10.17009615,175.1,175.05,5.7112]
[1740118322992,10.17009615,175.1,175.04,10.13380103]
[1740118324201,10.17009615,175.1,175.04,15.84520103]
[1740118324502,10.17009615,175.1,175.04,10.13380103]
[1740118325095,10.17009615,175.1,175.05,5.7113]
[1740118325501,10.17009615,175.1,175.01,3.4386]
[1740118325502,0.03629512,175.1,175.08,10.13380103]
[1740118325703,0.03629512,175.1,175.09,5.71]
[1740118326202,0.03629512,175.1,175.08,10.13380103]
[1740118326203,10.13380103,175.18,175.13,5.7086]
[1740118326902,10.13380103,175.18,175.12,10.13380103]
[1740118327094,10.13380103,175.18,175.12,15.84280103]
[1740118327095,15.84100103,175.18,175.12,15.84280103]
[1740118327300,0.04378162,175.17,175.13,0.04286086]
[1740118331200,0.04378162,175.17,175.13,5.75146086]
[1740118331400,0.04378162,175.17,175.13,0.04286086]
[1740118333205,0.04378162,175.17,175.13,5.75136086]
[1740118334298,0.04378162,175.17,175.14,5.7084]
[1740118334494,0.04378162,175.17,175.14,10.13380103]
[1740118334695,0.04378162,175.17,175.16,5.7078]
[1740118334897,0.04378162,175.17,175.16,15.84160103]
[1740118353716,8.162e-05,175.17,175.16,15.84160103]
[1740118354519,1.7016,175.25,175.16,10.13380103]
[1740118354821,1.7016,175.25,175.21,15.83980103]
[1740118355021,1.7016,175.25,175.21,10.13380103]
[1740118355321,196.556,175.27,175.21,10.13380103]
[1740118355722,0.03949379,175.26,175.22,5.74905164]
[1740118357716,0.03949379,175.26,175.23,15.83930103]
[1740118358715,0.03949379,175.26,175.24,5.7051]
[1740118360823,0.03949379,175.26,175.23,10.13380103]
[1740118363323,0.03949379,175.26,175.22,0.04335164]
[1740118363324,5.74409379,175.26,175.22,0.04335164]
[1740118363517,10.17329482,175.26,175.22,0.04335164]
[1740118363918,5.7051,175.25,175.22,0.04335164]
[1740118364316,10.17329482,175.26,175.22,0.04335164]
[1740118364521,15.87789482,175.26,175.22,0.04335164]
[1740118364719,0.03949379,175.26,175.22,10.17715267]
[1740118364919,0.03949379,175.26,175.24,10.13380103]
[1740118365328,0.03949379,175.26,175.24,15.83890103]
[1740118367530,0.03949379,175.26,175.25,5.7048]
[1740118369530,15.83580103,175.34,175.28,5.7037]
[1740118369832,10.13380103,175.34,175.27,10.13380103]
[1740118370236,5.7023,175.33,175.27,15.83770103]
[1740118370640,0.04085359,175.32,175.28,0.04257762]
[1740118374637,5.74345359,175.32,175.28,0.04257762]
[1740118378746,0.04085359,175.32,175.28,0.04257762]
[1740118379053,5.74355359,175.32,175.28,0.04257762]
[1740118381351,0.04085359,175.32,175.28,0.04257762]
[1740118381751,5.7029,175.31,175.28,0.04257762]
[1740118382055,10.17465462,175.32,175.28,0.04257762]
[1740118382257,0.04085359,175.32,175.28,0.04257762]
[1740118382554,10.17465462,175.32,175.28,0.04257762]
[1740118383355,5.7034,175.3,175.28,0.04257762]
[1740118386356,10.17465462,175.32,175.28,0.04257762]
[1740118386548,0.04085359,175.32,175.29,10.13380103]
[1740118388950,0.04085359,175.32,175.29,15.83710103]
[1740118391756,0.04085359,175.32,175.29,10.13380103]
[1740118397566,0.04085359,175.32,175.29,15.83730103]
[1740118398864,0.04085359,175.32,175.29,10.13380103]
[1740118399969,0.04085359,175.32,175.29,15.83730103]
[1740118401571,5.74345359,175.32,175.29,10.13380103]
[1740118401772,0.04085359,175.32,175.29,10.13380103]
[1740118403476,0.04085359,175.32,175.29,15.83710103]
[1740118403676,0.04085359,175.32,175.29,10.13380103]
[1740118405172,5.74345359,175.32,175.29,10.13380103]
[1740118405775,0.04085359,175.32,175.29,10.13380103]
[1740118407872,0.04085359,175.32,175.29,15.83730103]
[1740118408481,0.04085359,175.32,175.3,5.7032]
[1740118409279,0.04085359,175.32,175.29,10.13380103]
[1740118409474,0.04085359,175.32,175.29,15.83710103]
[1740118409677,0.04085359,175.32,175.29,10.13380103]
[1740118410379,0.04085359,175.32,175.3,5.7032]
[1740118412780,0.04085359,175.32,175.31,10.13380103]